Cogmind - Beta 15 @@@ ROGUE MODE // 2025.07.11 @ 21:25:26 Player: Inverisimilidude Result: Self-destructed Performance ------------- Evolutions (1) 500 Regions Visited (3) 600 Robots Destroyed (19) 95 Value Destroyed (299) 299 Prototype IDs (0) 0 Alien Tech Used (0) 0 Bonus (130) 130 TOTAL SCORE: 1624 Bonus ------- Follower Combat Kills 130 Cogmind --------- Core Integrity 291/400 Matter 300/300 Energy 212/265 System Corruption 0% Temperature Cool (0) Movement Walking (190) Ox1 Location -9/Materials Parts ------- > --- POWER (1) -------- Improved Ion Engine > --- PROPULSION (3) --- Aluminum Leg > --- UTILITY (3) ------ Small Storage Unit ECM Suite > --- WEAPON (2) ------- (None) > --- INVENTORY (8) ---- Light Ion Engine Light Ion Engine Improved Heat Sink ECM Suite Medium Armor Plating Light Assault Rifle Improved Light Cannon Rocket Launcher Peak State ------------ > --- POWER ------------ Improved Ion Engine > --- PROPULSION ------- Aluminum Leg Aluminum Leg Aluminum Leg > --- UTILITY ---------- Small Storage Unit ECM Suite Light Armor Plating > --- WEAPON ----------- Heavy EM Pulse Gun Medium Laser > --- INVENTORY -------- Light Ion Engine Light Ion Engine Improved Heat Sink ECM Suite Medium Armor Plating EM Pulse Gun Light Assault Rifle Rocket Launcher [Rating: 12] Favorites ----------- Power Light Ion Engine Engine Light Ion Engine Propulsion Aluminum Leg Treads Light Treads Leg Aluminum Leg Utility Small Storage Unit Device ECM Suite Storage Small Storage Unit Protection Light Armor Plating Weapon EM Pulse Gun Energy Gun EM Pulse Gun Build | -11 -10 -10 -9 ------- Run | Yrd Mat Min Mat Slots Evolved 2 | . . . 2 Power . | . . . . Propulsion 1 | . . . 1 Utility 1 | . . . 1 Weapon . | . . . . Parts Attached 17 | 6 2 3 6 Power 3 | 1 . 1 1 Engine 3 | 1 . 1 1 Core . | . . . . Reactor . | . . . . Propulsion 4 | 2 . . 2 Treads 1 | . . . 1 Leg 3 | 2 . . 1 Wheel . | . . . . Hover . | . . . . Flight . | . . . . Utility 6 | 1 2 2 1 Device 3 | . . 2 1 Storage 2 | 1 1 . . Processor . | . . . . Hackware . | . . . . Protection 1 | . 1 . . Artifact . | . . . . Weapon 4 | 2 . . 2 Energy Gun 4 | 2 . . 2 Energy Cannon . | . . . . Ballistic Gun . | . . . . Ballistic Cannon . | . . . . Launcher . | . . . . Special Weapon . | . . . . Impact Weapon . | . . . . Slashing Weapon . | . . . . Piercing Weapon . | . . . . Special Melee Weapon . | . . . . Unidentified Prototypes . | . . . . Parts Lost 6 | . . . 6 Power . | . . . . Propulsion 2 | . . . 2 Utility 1 | . . . 1 Weapon 3 | . . . 3 Highest Loss Streak 5 | . . . 5 To Critical Strikes . | . . . . Average Backups 7 | 3 7 7 6 Power 1 | . 1 1 1 Propulsion 1 | 2 3 1 . Utility 1 | . . 2 2 Weapon 2 | . 1 2 2 Tool/Special . | . . . . Unused Backups 12 | . 3 2 7 Power 1 | . . . 1 Propulsion 4 | . 3 1 . Utility 3 | . . . 3 Weapon 4 | . . 1 3 Tool/Special . | . . . . Average Slot Usage (%) 96 | . 87 100 90 Engine 13 | . 14 14 11 Leg 27 | . 28 28 23 Device 3 | . . 3 10 Storage 13 | . 14 14 11 Protection 8 | . 2 10 8 Energy Gun 26 | . 27 28 18 Peak Build Rating 12 | 6 7 9 12 Average Rating 7 | 4 6 7 9 On Entrance 5 | . 6 7 7 Naked Turns . | . . . . Heaviest Build 22 | 12 15 15 22 Greatest Support 30 | 20 20 20 30 Greatest Overweight (x) 3 | 3 3 . 1 Average Overweight (x) . | . . . . Largest Inventory Capacity 8 | 8 8 8 8 Average Capacity 7 | 7 8 8 8 Most Carried 8 | 6 8 8 8 Average Carried 7 | 3 7 7 6 Final Capacity 8 | 8 8 8 8 Final Carried 8 | 6 8 7 8 Class Distribution -------------------- 100% | Mutant Dominant Class ---------------- Mutant | -10/Materials Mutant | -10/Mines Mutant | -9/Materials Resources | -11 -10 -10 -9 ----------- Run | Yrd Mat Min Mat Matter Collected 405 | 260 10 80 55 Remotely . | . . . . Salvage Created 418 | . 227 117 74 Parts 41 | . 22 13 6 Haulers Intercepted . | . . . . Recyclers Shooed . | . . . . Parts Field Recycled . | . . . . Retrieved Matter . | . . . . Parts Self-Destructed . | . . . . Prevented . | . . . . Kills | -11 -10 -10 -9 ------- Run | Yrd Mat Min Mat Combat Hostiles Destroyed 15 | . 9 1 5 Melee 1 | . . 1 . Guns 11 | . 9 . 2 AOE 3 | . . . 3 Classes Destroyed 5 | . 2 3 . Worker 1 | . . 1 . Builder 1 | . . 1 . Tunneler 2 | . . 2 . Swarmer 11 | . 6 . 5 Grunt 4 | . 3 1 . Best Kill Streak 5 | . 4 2 5 Combat Bots Only 5 | . 4 1 5 Max Kills in Single Turn 2 | . 2 1 2 Gunslinging 1 | . 1 . . Exploded 2 | . . . 2 Melee 1 | . . 1 . Uniques/NPCs Destroyed . | . . . . Combat | -11 -10 -10 -9 -------- Run | Yrd Mat Min Mat Hostile Shots Fired 80 | . 22 5 53 Missed 18 | . 5 . 13 Hits 62 | . 17 5 40 Projectile 62 | . 17 5 40 Critical Strikes 2 | . 1 . 1 Damage Taken 806 | . 172 70 564 Core 147 | . 27 11 109 Absorbed by Shields . | . . . . Core Remaining (%) 92 | 100 . 84 . Volleys Fired 51 | . 15 20 16 Largest 2 | . 2 2 2 Hottest 90 | . 90 90 90 Shots Fired 94 | . 30 40 24 Gun 94 | . 30 40 24 Cannon . | . . . . Launcher . | . . . . Special . | . . . . Kinetic . | . . . . Thermal 39 | . 15 20 4 Explosive . | . . . . Electromagnetic 55 | . 15 20 20 Robot Hit Streak 4 | . 4 4 4 Robot Miss Streak 4 | . 4 3 4 Penetration Max . | . . . . Secondary Targets 1 | . 1 . . Max Gunslinging Chain 1 | . 1 . . Shots Hit Robots 46 | . 15 21 10 Core Hits 23 | . 11 6 6 Critical Kills . | . . . . Critical Parts Destroyed . | . . . . Critical Strikes 6 | . 2 2 2 Burn 5 | . 2 2 1 Corrupt 1 | . . . 1 Melee Attacks . | . . . . Impact . | . . . . Slashing . | . . . . Piercing . | . . . . Sneak Attacks . | . . . . Combat Hostiles . | . . . . Follow-up Attacks . | . . . . Damage Inflicted 722 | . 203 272 247 Guns 638 | . 203 266 169 Cannons . | . . . . Explosions 78 | . . . 78 Melee . | . . . . Ramming 6 | . . 6 . Kinetic . | . . . . Thermal 316 | . 77 136 103 Explosive . | . . . . Electromagnetic 400 | . 126 130 144 Impact . | . . . . Slashing . | . . . . Piercing . | . . . . Highest Corruption . | . . . . Average Corruption . | . . . . Corruption Purged . | . . . . Corruption Blocked . | . . . . Overload Shots . | . . . . Overflow Damage 4 | . . . 4 Projectiles . | . . . . Explosions 4 | . . . 4 Melee . | . . . . Knockbacks . | . . . . Impact . | . . . . Kinetic . | . . . . Secondary . | . . . . Self-Inflicted Damage 65 | . . . 65 Shots 2 | . . . 2 Rammed . | . . . . Targets Rammed 2 | . . 2 . Kicked 2 | . . 2 . Crushed . | . . . . Highest Temperature 180 | . 180 120 147 Average Temperature 51 | . 51 39 73 Received Heat Transfer 288 | . 60 39 189 Siege Activations . | . . . . Martial Activations . | . . . . Shielding Activations . | . . . . Robots Disrupted . | . . . . Combat Hostiles . | . . . . Robots Corrupted . | . . . . Combat Hostiles . | . . . . Parts Fried . | . . . . Impact Corruptions . | . . . . Robots Melted . | . . . . Combat Hostiles . | . . . . Parts Melted 5 | . 4 1 . Heat Transferred 1123 | . 370 555 198 Parts Sabotaged . | . . . . Parts Stolen . | . . . . Parts Stripped . | . . . . Power Chain Reactions 2 | . . . 2 Alert | -11 -10 -10 -9 ------- Run | Yrd Mat Min Mat Maximum Alert Level . | . . . . Low Security (%) 100 | 100 100 100 100 Level 1 . | . . . . Level 2 . | . . . . Level 3 . | . . . . Level 4 . | . . . . Level 5 . | . . . . High Security . | . . . . Max Security . | . . . . Peak Influence 138 | . 132 33 138 Initial 24 | . . 24 . Average 20 | . 60 2 61 Influence Increases 569 | . 202 79 288 Destroy 0b10 Robot/C 420 | . 180 40 200 Destroy 0b10 Robot/NC 20 | . . 20 . Destroy Leader 70 | . 20 10 40 Allied During Kill 18 | . . 9 9 Successful Hack 5 | . . . 5 Disable Machine 30 | . . . 30 Destroy Structure 6 | . 2 . 4 Influence Decreases 471 | . 138 143 190 Entered New Map 40 | . . 40 . Time Decay 321 | . 138 83 100 Lost Part 50 | . . . 50 Lost Ally 60 | . . 20 40 Squads Dispatched 1 | . 1 . . Investigation . | . . . . Extermination . | . . . . Reinforcement 1 | . 1 . . Assault . | . . . . Garrison . | . . . . Intercept . | . . . . Searches Triggered . | . . . . Construction Impeded . | . . . . Haulers Reinforced . | . . . . Active Scanning Responses . | . . . . Cargo Convoy Interrupts . | . . . . Stealth | -11 -10 -10 -9 --------- Run | Yrd Mat Min Mat Distress Signals 3 | . 1 . 2 Communications Jammed . | . . . . Distress Signals . | . . . . Times Spotted 40 | . 13 2 25 Peak Tracking Total 9 | . 6 2 9 Tactical Retreats 5 | . . . 5 Traps | -11 -10 -10 -9 ------- Run | Yrd Mat Min Mat Traps Triggered 1 | . 1 . . Indirectly . | . . . . Trap Hack Attempts . | . . . . Triggered . | . . . . Disarmed . | . . . . Reprogrammed . | . . . . Reused . | . . . . Traps Extracted . | . . . . Installed . | . . . . Triggered . | . . . . Machines | -11 -10 -10 -9 ---------- Run | Yrd Mat Min Mat Machines Disabled 2 | . . . 2 Max in Single Turn 1 | . . . 1 Machines Repaired . | . . . . Machines Dismantled . | . . . . Machines Sabotaged . | . . . . Overloaded Fab Kills . | . . . . Hacking | -11 -10 -10 -9 --------- Run | Yrd Mat Min Mat Machines Accessed 3 | . 1 1 1 Terminals 3 | . 1 1 1 Fabricators . | . . . . Repair Stations . | . . . . Recycling Units . | . . . . Scanalyzers . | . . . . Garrison Access . | . . . . Total Hacks 5 | . 1 3 1 Successful 3 | . 1 1 1 Failed 2 | . . 2 . Catastrophic 1 | . . 1 . Database Lockouts . | . . . . Manual 3 | . . 2 1 Terminals 5 | . 1 3 1 Fabricators . | . . . . Repair Stations . | . . . . Recycling Units . | . . . . Scanalyzers . | . . . . Garrison Access . | . . . . Terminal Hacks 2 | . 1 1 . Record 1 | . . 1 . Branch Access Points 1 | . 1 . . Fabricator Hacks . | . . . . Repair Station Hacks . | . . . . Recycling Unit Hacks . | . . . . Scanalyzer . | . . . . Garrison Access Hacks . | . . . . Unauthorized Hacks 1 | . . . 1 Terminals 1 | . . . 1 Botnet 1 | . . . 1 Fabricators . | . . . . Repair Stations . | . . . . Recycling Units . | . . . . Scanalyzers . | . . . . Garrison Access . | . . . . Data Cores Recovered . | . . . . Used . | . . . . Hacking Detections 2 | . 1 1 . Full Trace Events 1 | . . 1 . Feedback Events . | . . . . Feedback Blocked . | . . . . Robot Schematics Acquired . | . . . . Robots Built . | . . . . Authchips . | . . . . Time . | . . . . Total Robot Build Rating . | . . . . Part Schematics Acquired . | . . . . Parts Built . | . . . . Authchips . | . . . . Time . | . . . . Total Part Build Rating . | . . . . Parts Repaired . | . . . . Time . | . . . . Parts Recycled . | . . . . Recycled Matter . | . . . . Retrieved Matter . | . . . . Retrieved Components . | . . . . Parts Scanalyzed . | . . . . Part Schematics Acquired . | . . . . Parts Damaged . | . . . . Bothacking | -11 -10 -10 -9 ------------ Run | Yrd Mat Min Mat Used RIF Installer . | . . . . Robots Hacked . | . . . . Non-combat . | . . . . Combat . | . . . . Robot Hacks Applied . | . . . . Relay Couplers Released . | . . . . Fabnet Peak Effective % . | . . . . Robots Rewired . | . . . . Allies Hacked . | . . . . Hacks Repelled . | . . . . Allies | -11 -10 -10 -9 -------- Run | Yrd Mat Min Mat Total Allies 4 | . . 4 . Largest Group 4 | . . 4 2 Highest-Rated Group 71 | . . 71 24 Highest-Rated Ally 31 | . . 31 16 Total Orders . | . . . . Ally Attacks 41 | . . 18 23 Total Damage 420 | . . 229 191 Kills 6 | . . 1 5 Allies Corrupted . | . . . . Allies Melted 1 | . . 1 . Intel | -11 -10 -10 -9 ------- Run | Yrd Mat Min Mat Active Infowar (turns) 584 | . . 328 256 Terrain 220 | . . 220 . Seismic 108 | . . 108 . ECM 256 | . . . 256 Robot Analysis Total . | . . . . Derelict Logs Recovered 2 | . . 2 . Drone Launches . | . . . . Drone Recoveries . | . . . . Exploration | -11 -10 -10 -9 ------------- Run | Yrd Mat Min Mat Turns Passed 2174 | 77 411 1429 257 Spaces Moved 1566 | 53 284 1070 159 Core 23 | 22 1 . . Treads . | . . . . Legs 1543 | 31 283 1070 159 Wheels . | . . . . Hover . | . . . . Flight . | . . . . Fastest Speed 50 | 50 120 120 120 Average Speed 120 | 118 120 120 123 Slowest Speed 200 | 200 200 120 190 Overloaded Moves . | . . . . Propulsion Burnouts . | . . . . Robots Hopped . | . . . . Potential Cave-ins . | . . . . Cave-ins Triggered . | . . . . Exploration Rate (%) 43 | 5 53 101 13 Regions Visited 3 Branch Regions 1 Pre-discovered Areas . | . . . . Known Exits Taken 1 | . 1 . . Unknown Exits Taken 2 | 1 . 1 . Scrap Searched 3 | . . 3 . Spaces Dug . | . . . . Terrain Destroyed 4 | . . . 4 Melee . | . . . . Projectile . | . . . . AOE 4 | . . . 4 Terrain Rammed . | . . . . Walls Destroyed . | . . . . Machines Disabled . | . . . . Actions | -11 -10 -10 -9 --------- Run | Yrd Mat Min Mat Total 1757 | 64 323 1176 194 Wait 88 | . 9 73 6 Move 1563 | 52 283 1069 159 Hop . | . . . . Pick Up 18 | 6 6 3 3 Fast Attach 12 | 6 5 1 . Attach 3 | . . . 3 Detach . | . . . . Swap 8 | . . 3 5 Drop 12 | . 5 5 2 Fire 51 | . 15 20 16 Melee . | . . . . Ram . | . . . . Kick 2 | . . 2 . Crush . | . . . . Escape Stasis . | . . . . Rewire . | . . . . Trap . | . . . . Miscellaneous . | . . . . Route ------- -11/Scrapyard -10/Materials (discovered 2 exits: *Mat / *Min) -10/Mines (discovered 3 exits: *Mat x2 / [*Sub]) -9/Materials (discovered 1 exit: Min) History --------- Turn | Location | Event 20 | -11/Scrapyard | Discovered new exit (range 16) 78 | -11/Scrapyard | Entered Materials 164 | -10/Materials | Identified exit to Mines 329 | -10/Materials | Build established: Mutant 379 | -10/Materials | Discovered new exit (range 8) 489 | -10/Materials | Entered Mines 522 | -10/Mines | Discovered new exit (range 9) 534 | -10/Mines | Assisted by bots powering up and referring to "LRC-V3" 565 | -10/Mines | Discovered new exit (range 10) 568 | -10/Mines | Learned Materials terminal intel 898 | -10/Mines | Learned location of 1 exit from Materials 1010 | -10/Mines | Discovered new exit (range 8) 1079 | -10/Mines | Received a Rocket Launcher from a helpful Derelict 1184 | -10/Mines | Received a Mining Laser from a helpful Derelict 1918 | -10/Mines | Entered Materials 1918 | -9/Materials | Accompanied by 2 allies 1918 | -9/Materials | Evolved 2 slots: Propulsion x1, Utility x1 1919 | -9/Materials | Identified exit to Mines 1920 | -9/Materials | Loaded intel: 12 terminal locations 2175 | -9/Materials | Self-destructed Last Messages --------------- 02124_ U-05 Engineer lays Concrete. 02125_ U-05 Engineer builds a Wall. 02125_ U-05 Engineer lays Concrete. 02125_ K-01 Serf collects debris. 02126_ U-05 Engineer lays Concrete. 02129_ K-01 Serf collects debris. 02129_ U-05 Engineer destroyed. 02130_ U-05 Engineer lays Concrete. 02131_ EM Pulse Gun destroyed. 02131_ Critical hit (Burn: +37). 02132_ U-05 Engineer lays Concrete. 02132_ K-01 Serf collects debris. 02133_ U-05 Engineer lays Concrete. 02134_ U-05 Engineer builds a Wall. 02134_ U-05 Engineer lays Concrete. 02136_ K-01 Serf collects debris. 02137_ U-05 Engineer lays Concrete. 02139_ K-01 Serf cleans the Terminal. 02148_ K-01 Serf collects debris. 02160_ Aluminum Leg destroyed. Map ----- +----------------------------------------------------+ | ?????????????????????????????????????????????????? | | ?????????????????????????????????????????????????? | | ?????????????????????????????????????????????????? | | ?????????????????????????????????????"""""???????? | | ?????????????????????????????????????""T""???????? | | ?????????????????????????????????????????????????? | | ?T???????????????????????????????????????????????? | | ?????????????????????????????????????????????????? | | ?????????????????????????????????????????????????? | | ?????????????????????????????????????????????????? | | ?????????????????????????????????""??????????????? | | ?????????????????????????????????T???????????????? | | ????????????????? ?????????????????????????????? | | ????????????????# ?????????????????????????????? | | ????????????????# ?????????????????????????????? | | ????????????????# ?????????????????????????????? | | ????????????????# ?????????????????????????????? | | ????????????????# ?????????????????????????????? | | ????????????????# ?????????????????????????????? | | ????????????????# #????????????????????????????? | | ????????????????# #????????????????????????????? | | ????????????????# #????????????????????????????? | | ????????????????# ################?????????????? | | ?????????????#### # ! Y#?????????????? | | ?????????????? # #??????????????? | | ????????????????# # """@ #??????????????? | | ????????????????# + """ =! #??????????????? | | ????????????????# # """ !! #??????????????? | | ????????????""??# # #??????????????? | | ???????????""""?# ###############??????????????? | | ??????????"""""?# #??????########?########?????? | | ???????? """"" # #??????? #?# """ #?????? | | ???????# """ # #??????? == #?# ""R" #?????? | | ???????# + #???????? == ??# "" " #?????? | | ???????# # #???????? = ??# #?????? | | ???????# ?# #????????? ???# ??????? | | ???????##+####?## ##???????? ???# ????????? | | >??????????????# ##########/######+####??????? | | ???????????????# % #??????? | | ???????????????# % #??????? | | ?????# ????????# % #??????? | | ???### ????????# ###+######+######+#####?????? | | ?? " ??????### ### ## ## #?????? | | ??? "%" ????????#%#?# ## ## #?????? | | ????? T??######+### """ ## ## """#?????? | | ????" ?# ! % # """ ## /=] ## """#?????? | | ????" ?# " """ # """ ## /= ## """#?????? | | ????" # T """ # ## == ## #?????? | | ????" # " " " # #################?????? | | ???? + # #?????????????????????? | +----------------------------------------------------+ Best States ------------- Heat Dissipation 28 Energy Generation 12 Energy Capacity 265 Matter Stores 300 Matter Capacity 300 Sight Range 16 Terrain Scan Range 16 Terrain Scan Density 10 ECM Strength 1 Armor Coverage 150 Evasion (%) 55 Item Schematics ----------------- None Robot Schematics ------------------ None Fabricated ------------ Nothing Repaired ---------- Nothing Alien Tech Used ----------------- None Achievements -------------- None Challenges ------------ None Game ------ Seed NavigationMakeshiftBasin Manual? 0 Play Time 00:16:01 Cumulative 38.9 hours Start 2025.07.11 @ 21:10:19 End 2025.07.11 @ 21:25:26 Sessions 1 Manual Loads 0 Difficulty Rogue Special Mode None Game No. 49 Rogue 49 Adventurer 0 Explorer 0 Win Type - Total 0 Types 0/0/0/0/0/0/0/0/0/0 Lore% 20 Gallery% 28 Achievement% 28 Wizard Run 0 Options --------- Layout 1 ASCII 0 Keyboard 0 Movement Arrows Keybinds 0 Fullscreen 1 Font 24/Smallcaps Map View 50x35 Zoom Use 0% Tactical HUD 1 Map Filters NONE Filters NONE Steam 1 RUN: 3a00440b-4943-47a5-82f8-9e78cdd742ba